fUST/lending_fUST_20250101
["ID","MTS","AMOUNT","RATE_DAILY","PERIOD"]
[347301743,1735668647795,-522.98,0.0002,3]
[347301744,1735668647804,-545.94,0.0002,3]
[347301745,1735668647813,-5614.94,0.0002,3]
[347301746,1735668647823,-759.41,0.0002,3]
[347301747,1735668647832,-500.0,0.0002,3]
[347301748,1735668647841,-500.0,0.0002,3]
[347301749,1735668647850,-517.61,0.0002,3]
[347301750,1735668647859,-500.0,0.0002,3]
[347301751,1735668647869,-332.11562887,0.0002,3]
[347301752,1735668647878,-500.0,0.0002,3]
[347301753,1735668647887,-500.0,0.0002,3]
[347301754,1735668647896,-973.69,0.0002,3]
[347301755,1735668647909,-500.0,0.0002,3]
[347301756,1735668647919,-8683.31,0.0002,3]
[347301757,1735668647928,-340.834427,0.0002,2]
[347301758,1735668647937,-340.834427,0.0002,2]
[347301759,1735668647947,-500.0,0.0002,3]
[347301760,1735668647957,-500.0,0.0002,3]
[347301761,1735668647966,-577.61,0.0002,3]
[347301762,1735668647975,-592.17,0.0002,3]
[347301763,1735668647985,-500.0,0.0002,3]
[347301764,1735668647994,-500.0,0.0002,3]
[347301765,1735668648003,-500.0,0.0002,3]
[347301766,1735668648013,-1148.79,0.0002,3]
[347301767,1735668648022,-500.0,0.0002,3]
[347301768,1735668648031,-304.331791,0.0002,2]
[347301769,1735668648040,-304.331791,0.0002,2]
[347301770,1735668648049,-500.0,0.0002,3]
[347301771,1735668648058,-502.16,0.0002,3]
[347301772,1735668648068,-151.0,0.0002,2]
[347301773,1735668648077,-1132.64,0.0002,3]
[347301774,1735668648087,-500.0,0.0002,3]
[347301775,1735668648096,-5833.04,0.0002,3]
[347301776,1735668648106,-464.614697,0.0002,2]
[347301777,1735668648115,-769.3,0.0002,3]
[347301778,1735668648124,-464.614697,0.0002,2]
[347301779,1735668648136,-1512.88,0.0002,3]
[347301780,1735668648148,-731.64,0.0002,3]
[347301781,1735668648161,-151.0,0.0002,2]
[347301782,1735668648172,-500.0,0.0002,3]
[347301783,1735668648183,-500.0,0.0002,3]
[347301784,1735668648195,-500.0,0.0002,3]
[347301785,1735668648207,-500.0,0.0002,3]
[347301786,1735668648217,-3050.94,0.0002,3]
[347301787,1735668648226,-553.66398254,0.0002,3]
[347301788,1735668648501,-416.10601746,0.0002,3]
[347301789,1735668648510,-500.0,0.0002,3]
[347301790,1735668648519,-508.5864249,0.0002,3]
[347301791,1735668648528,-127.58604872,0.0002,3]
[347301792,1735668648540,-372.41395128,0.0002,3]
[347301793,1735668648549,-832.55,0.0002,3]
[347301794,1735668648558,-770.7,0.0002,3]
[347301795,1735668648567,-500.0,0.0002,3]
[347301796,1735668648576,-500.0,0.0002,3]
[347301797,1735668648586,-1429.98,0.0002,3]
[347301798,1735668648594,-151.0,0.0002,2]
[347301799,1735668648604,-151.0,0.0002,2]
[347301800,1735668648613,-557.67,0.0002,3]
[347301801,1735668648624,-500.0,0.0002,3]
[347301802,1735668648633,-347.929029,0.0002,2]
[347301803,1735668648642,-500.0,0.0002,3]
[347301804,1735668648652,-151.0,0.0002,2]
[347301805,1735668648661,-500.0,0.0002,3]
[347301806,1735668648670,-500.0,0.0002,3]
[347301807,1735668648680,-347.929029,0.0002,2]
[347301808,1735668648690,-1584.09,0.0002,3]
[347301809,1735668648699,-832.15,0.0002,3]
[347301810,1735668648709,-759.0,0.0002,3]
[347301811,1735668648718,-1933.34,0.0002,3]
[347301812,1735668648728,-500.0,0.0002,3]
[347301813,1735668648738,-3028.4,0.0002,3]
[347301814,1735668648748,-761.91,0.0002,3]
[347301815,1735668648758,-1979.06,0.0002,3]
[347301816,1735668648767,-151.0,0.0002,2]
[347301817,1735668648777,-500.0,0.0002,3]
[347301818,1735668648786,-1587.14,0.0002,3]
[347301819,1735668648795,-500.0,0.0002,3]
[347301820,1735668648805,-500.0,0.0002,3]
[347301821,1735668648814,-42182.04,0.0002,3]
[347301822,1735668648823,-5363.25,0.0002,3]
[347301823,1735668648832,-146.23718473,0.0002,3]
[347301824,1735668649150,-153.0,0.00019604,2]
[347301825,1735668649160,-153.0,0.00019604,2]
[347301826,1735668649169,-27.3549995,0.00019604,2]
[347301827,1735668649182,-125.6450005,0.00019604,2]
[347301828,1735668649193,-884.87281527,0.0002,3]
[347301829,1735668649203,-151.0,0.0002,2]
[347301830,1735668649213,-500.0,0.0002,3]
[347301831,1735668649224,-930.59,0.0002,3]
[347301832,1735668649234,-781.61,0.0002,3]
[347301833,1735668649244,-500.0,0.0002,3]
[347301834,1735668649254,-1163.89,0.0002,3]
[347301835,1735668649264,-1299.77,0.0002,3]
[347301836,1735668649274,-215.26718473,0.0002,3]
[347301837,1735668649285,-442.27497452,0.0002,3]
[347301839,1735669694987,836.06916139,0.000125,2]
[347301846,1735669830620,400.0,0.00013973,2]
[347301870,1735669831948,-626.838,0.00018,2]
[347301871,1735669831959,-1395.92,0.00018,2]
[347301872,1735669831971,-834.45753381,0.00018,2]
[347301873,1735669831987,-527.70534329,0.00018,2]
[347301874,1735669832108,-762.84243801,0.00018,2]
[347301875,1735669832118,-759.7105542,0.00018,2]
[347301907,1735669837841,-4901.95139486,0.00018,2]
[347301908,1735669837851,-300.0,0.0001817,2]
[347301909,1735669837860,-491.02,0.00018172,2]
[347301910,1735669837870,-614.078082,0.00018246,2]
[347301911,1735669837880,-24900.0,0.00018458,2]
[347301912,1735669837890,-389.94802505,0.00019078,2]
[347301913,1735669837899,-1056.27951272,0.00019078,2]
[347301914,1735669837909,-302.66710251,0.00019104,2]
[347301915,1735669837919,-151.0,0.00019166,2]
[347301916,1735669837928,-517.74143387,0.00019173,2]
[347301917,1735669837937,-633.64993133,0.00019173,2]
[347301918,1735669837947,-500.0,0.00019173,2]
[347301919,1735669837956,-500.0,0.00019173,2]
[347301920,1735669837965,-612.824,0.00019177,2]
[347301921,1735669837975,-524.21365466,0.00019177,2]
[347301922,1735669837984,-213.75245778,0.00019177,2]
[347301923,1735669837995,-196.8672722,0.00019177,2]
[347301924,1735669838004,-500.0,0.00019178,2]
[347301925,1735669838013,-505.31059276,0.00019178,2]
[347301926,1735669838022,-500.0,0.00019178,2]
[347301927,1735669838032,-500.0,0.00019178,2]
[347301928,1735669838042,-536.86,0.00019178,2]
[347301929,1735669838051,-500.0,0.00019178,2]
[347301930,1735669838060,-232.9285885,0.00019178,2]
[347301931,1735669838070,-500.0,0.00019178,2]
[347301932,1735669838079,-500.86099914,0.00019178,2]
[347301933,1735669838088,-500.0,0.00019178,2]
[347301934,1735669838098,-500.0,0.00019178,2]
[347301935,1735669838107,-502.91239522,0.00019178,2]
[347301936,1735669838117,-522.9067441,0.00019178,2]
[347301937,1735669838126,-500.0,0.00019178,2]
[347301938,1735669838135,-500.0,0.00019178,2]
[347301939,1735669838145,-500.0,0.00019178,2]
[347301940,1735669838154,-500.0,0.00019178,2]
[347301941,1735669838163,-500.0,0.00019178,2]
[347301942,1735669838174,-500.0,0.00019178,2]
[347301943,1735669838183,-500.0,0.00019178,2]
[347301944,1735669838193,-500.0,0.00019178,2]
[347301945,1735669838202,-640.84134407,0.00019178,2]
[347301946,1735669838212,-500.0,0.00019178,2]
[347301947,1735669838222,-503.12171205,0.00019178,2]
[347301948,1735669838373,-500.0,0.00019178,2]
[347301949,1735669838383,-500.0,0.00019178,2]
[347301950,1735669838393,-500.0,0.00019178,2]
[347301951,1735669838403,-500.0,0.00019178,2]
[347301952,1735669838413,-500.0,0.00019178,2]
[347301953,1735669838422,-500.0,0.00019178,2]
[347301954,1735669838432,-500.0,0.00019178,2]
[347301955,1735669838441,-500.0,0.00019178,2]
[347301956,1735669838451,-508.0383041,0.00019178,2]
[347301957,1735669838461,-500.0,0.00019178,2]
[347301958,1735669838470,-542.51371461,0.00019178,2]
[347301959,1735669838479,-500.0,0.00019178,2]
[347301960,1735669838488,-500.0,0.00019178,2]
[347301961,1735669838499,-500.0,0.00019178,2]
[347301962,1735669838508,-500.0,0.00019178,2]
[347301963,1735669838517,-545.94,0.00019178,2]
[347301964,1735669838527,-500.0,0.00019178,2]
[347301965,1735669838536,-480.93022324,0.00019178,2]
[347301966,1735669838545,-500.0,0.00019178,2]
[347301967,1735669838555,-500.0,0.00019178,2]
[347301968,1735669838564,-500.0,0.00019178,2]
[347301969,1735669838573,-500.0,0.00019178,2]
[347301970,1735669838583,-500.0,0.00019178,2]
[347301971,1735669838592,-503.08783653,0.00019178,2]
[347301972,1735669838602,-502.48432463,0.00019178,2]
[347301973,1735669838611,-500.0,0.00019178,2]
[347301974,1735669838621,-500.0,0.00019178,2]
[347301975,1735669838630,-589.09,0.00019178,2]
[347301976,1735669838639,-500.0,0.00019178,2]
[347301977,1735669838649,-500.0,0.00019178,2]
[347301978,1735669838658,-320.79362068,0.00019178,2]
[347301979,1735669838668,-502.63721505,0.00019178,2]
[347301980,1735669838677,-500.0,0.00019178,2]
[347301981,1735669838687,-500.0,0.00019178,2]
[347301982,1735669838696,-500.0,0.00019178,2]
[347301983,1735669838705,-502.16,0.00019178,2]
[347301984,1735669838715,-500.0,0.00019178,2]
[347301985,1735669838724,-513.80924582,0.00019178,2]
[347301986,1735669838734,-500.0,0.00019178,2]
[347301987,1735669838745,-500.0,0.00019178,2]
[347301988,1735669838754,-500.0,0.00019178,2]
[347301989,1735669838764,-153.1686384,0.00019178,2]
[347301990,1735669838773,-500.0,0.00019178,2]
[347301991,1735669838783,-500.0,0.00019178,2]
[347301992,1735669838792,-484.53775885,0.00019178,2]
[347301993,1735669838802,-500.0,0.00019178,2]
[347301994,1735669838811,-500.0,0.00019178,2]
[347301995,1735669838821,-500.0,0.00019178,2]
[347301996,1735669838830,-806.41,0.00019178,2]
[347301997,1735669838840,-308.24090254,0.00019178,2]
[347301998,1735669838850,-500.0,0.00019178,2]
[347301999,1735669838859,-500.0,0.00019178,2]
[347302000,1735669838868,-534.58698682,0.00019178,2]
[347302001,1735669838877,-500.0,0.00019178,2]
[347302002,1735669838887,-500.0,0.00019178,2]
[347302003,1735669838895,-500.0,0.00019178,2]
[347302004,1735669838905,-458.63960152,0.00019178,2]
[347302005,1735669838914,-500.0,0.00019178,2]
[347302006,1735669838923,-500.0,0.00019178,2]
[347302007,1735669838932,-500.0,0.00019178,2]
[347302008,1735669838942,-500.0,0.00019178,2]
[347302009,1735669838952,-500.0,0.00019178,2]
[347302010,1735669838962,-759.41,0.00019178,2]
[347302011,1735669838972,-500.0,0.00019178,2]
[347302012,1735669838981,-500.0,0.00019178,2]
[347302013,1735669838992,-500.0,0.00019178,2]
[347302014,1735669839001,-500.0,0.00019178,2]
[347302015,1735669839010,-408.95633005,0.00019178,2]
[347302016,1735669839022,-500.0,0.00019178,2]
[347302017,1735669839032,-591.71422377,0.00019178,2]
[347302018,1735669839041,-500.0,0.00019178,2]
[347302019,1735669839050,-500.0,0.00019178,2]
[347302020,1735669839059,-5614.94,0.00019178,2]
[347302021,1735669839068,-500.0,0.00019178,2]
[347302022,1735669839078,-500.0,0.00019178,2]
[347302023,1735669839087,-502.10794084,0.00019178,2]
[347302024,1735669839097,-502.51270683,0.00019178,2]
[347302025,1735669839106,-502.45775699,0.00019178,2]
[347302026,1735669839116,-500.0,0.00019178,2]
[347302027,1735669839125,-500.0,0.00019178,2]
[347302028,1735669839134,-902.8,0.00019178,2]
[347302029,1735669839144,-517.61,0.00019178,2]
[347302030,1735669839153,-500.0,0.00019178,2]
[347302031,1735669839162,-500.0,0.00019178,2]
[347302032,1735669839172,-500.0,0.00019178,2]
[347302033,1735669839181,-500.0,0.00019178,2]
[347302034,1735669839190,-500.0,0.00019178,2]
[347302035,1735669839199,-500.0,0.00019178,2]
[347302036,1735669839208,-500.0,0.00019178,2]
[347302037,1735669839217,-501.97013067,0.00019178,2]
[347302038,1735669839227,-500.0,0.00019178,2]
[347302039,1735669839236,-500.0,0.00019178,2]
[347302040,1735669839247,-500.0,0.00019178,2]
[347302041,1735669839256,-500.0,0.00019178,2]
[347302042,1735669839265,-500.0,0.00019178,2]
[347302043,1735669839275,-500.0,0.00019178,2]
[347302044,1735669839286,-500.0,0.00019178,2]
[347302045,1735669839295,-500.0,0.00019178,2]
[347302046,1735669839304,-500.0,0.00019178,2]
[347302047,1735669839314,-522.98,0.00019178,2]
[347302048,1735669839324,-504.31654512,0.00019178,2]
[347302049,1735669839333,-500.0,0.00019178,2]
[347302050,1735669839342,-500.0,0.00019178,2]
[347302051,1735669839352,-500.0,0.00019178,2]
[347302052,1735669839362,-500.0,0.00019178,2]
[347302053,1735669839372,-500.0,0.00019178,2]
[347302054,1735669839382,-577.61,0.00019178,2]
[347302055,1735669839391,-384.83537564,0.00019178,2]
[347302056,1735669839400,-247.13254516,0.00019178,2]
[347302057,1735669839409,-500.0,0.00019178,2]
[347302058,1735669839419,-500.0,0.00019178,2]
[347302059,1735669839428,-500.0,0.00019178,2]
[347302060,1735669839437,-500.0,0.00019178,2]
[347302061,1735669839447,-500.0,0.00019178,2]
[347302062,1735669839456,-500.0,0.00019178,2]
[347302063,1735669839465,-500.0,0.00019178,2]
[347302064,1735669839475,-500.0,0.00019178,2]
[347302065,1735669839484,-500.0,0.00019178,2]
[347302066,1735669839493,-500.0,0.00019178,2]
[347302067,1735669839502,-500.0,0.00019178,2]
[347302068,1735669839511,-500.0,0.00019178,2]
[347302069,1735669839520,-500.0,0.00019178,2]
[347302070,1735669839529,-500.0,0.00019178,2]
[347302071,1735669839538,-500.0,0.00019178,2]
[347302072,1735669839548,-500.0,0.00019178,2]
[347302073,1735669839559,-842.88,0.00019178,2]
[347302074,1735669839569,-501.99339118,0.00019178,2]
[347302075,1735669839578,-500.0,0.00019178,2]
[347302076,1735669839587,-500.0,0.00019178,2]
[347302077,1735669839597,-6080.51,0.00019178,2]
[347302078,1735669839606,-500.0,0.00019178,2]
[347302079,1735669839615,-500.0,0.00019178,2]
[347302080,1735669839624,-500.0,0.00019178,2]
[347302081,1735669839634,-973.69,0.00019178,2]
[347302082,1735669839643,-500.0,0.00019178,2]
[347302083,1735669839652,-500.0,0.00019178,2]
[347302084,1735669839661,-500.0,0.00019178,2]
[347302086,1735669839670,-500.0,0.00019178,2]
[347302088,1735669839679,-592.17,0.00019178,2]
[347302090,1735669839689,-731.64,0.00019178,2]
[347302092,1735669839698,-500.0,0.00019178,2]
[347302094,1735669839707,-500.0,0.00019178,2]
[347302096,1735669839717,-500.0,0.00019178,2]
[347302098,1735669839726,-615.29218176,0.00019178,2]
[347302100,1735669839736,-500.0,0.00019178,2]
[347302102,1735669839747,-500.0,0.00019178,2]
[347302104,1735669839756,-500.0,0.00019178,2]
[347302106,1735669839765,-500.0,0.00019178,2]
[347302108,1735669839774,-175.85673067,0.00019178,2]
[347302110,1735669839783,-1148.79,0.00019178,2]
[347302112,1735669839792,-500.0,0.00019178,2]
[347302114,1735669839802,-735.48,0.00019178,2]
[347302116,1735669839811,-500.0,0.00019178,2]
[347302118,1735669839820,-500.0,0.00019178,2]
[347302120,1735669839830,-500.0,0.00019178,2]
[347302122,1735669839839,-525.49,0.00019178,2]
[347302124,1735669839848,-534.43,0.00019178,2]
[347302126,1735669839858,-500.0,0.00019178,2]
[347302128,1735669839867,-500.0,0.00019178,2]
[347302130,1735669839876,-1132.64,0.00019178,2]
[347302132,1735669839885,-500.0,0.00019178,2]
[347302134,1735669839894,-769.3,0.00019178,2]
[347302136,1735669839904,-1370.4,0.00019178,2]
[347302139,1735669839923,-500.0,0.00019178,2]
[347302141,1735669839934,-613.12939223,0.00019178,2]
[347302143,1735669839943,-2902.22,0.00019178,2]
[347302145,1735669839953,-500.0,0.00019178,2]
[347302148,1735669839962,-500.0,0.00019178,2]
[347302150,1735669839972,-188.0,0.00019178,2]
[347302152,1735669839982,-500.0,0.00019178,2]
[347302154,1735669839992,-500.0,0.00019178,2]
[347302156,1735669840002,-1000.0,0.00019178,2]
[347302158,1735669840011,-224.48763208,0.00019178,2]
[347302160,1735669840021,-500.0,0.00019178,2]
[347302162,1735669840031,-500.0,0.00019178,2]
[347302164,1735669840040,-660.05,0.00019178,2]
[347302166,1735669840050,-500.0,0.00019178,2]
[347302168,1735669840060,-500.0,0.00019178,2]
[347302171,1735669840069,-508.23314373,0.00019178,2]
[347302173,1735669840079,-504.52758412,0.00019178,2]
[347302175,1735669840089,-483.09680624,0.00019178,2]
[347302177,1735669840099,-500.0,0.00019178,2]
[347302180,1735669840108,-500.0,0.00019178,2]
[347302182,1735669840118,-952.43,0.00019178,2]
[347302184,1735669840127,-500.0,0.00019178,2]
[347302186,1735669840137,-508.03540037,0.00019178,2]
[347302188,1735669840146,-500.0,0.00019178,2]
[347302190,1735669840156,-797.86,0.00019178,2]
[347302192,1735669840165,-500.0,0.00019178,2]
[347302194,1735669840174,-1094.57,0.00019178,2]
[347302196,1735669840184,-3050.94,0.00019178,2]
[347302198,1735669840193,-507.69576642,0.00019178,2]
[347302200,1735669840203,-500.0,0.00019178,2]
[347302202,1735669840213,-8791.02,0.00019178,2]
[347302204,1735669840222,-500.0,0.00019178,2]
[347302206,1735669840231,-850.86,0.00019178,2]
[347302208,1735669840241,-500.0,0.00019178,2]
[347302210,1735669840251,-500.0,0.00019178,2]
[347302212,1735669840261,-500.0,0.00019178,2]
[347302214,1735669840270,-797.48,0.00019178,2]
[347302216,1735669840283,-738.59,0.00019178,2]
[347302218,1735669840292,-734.17,0.00019178,2]
[347302220,1735669840301,-576.41,0.00019178,2]
[347302222,1735669840311,-500.0,0.00019178,2]
[347302224,1735669840320,-500.0,0.00019178,2]
[347302226,1735669840330,-850.38,0.00019178,2]
[347302228,1735669840340,-500.0,0.00019178,2]
[347302230,1735669840349,-730.16,0.00019178,2]
[347302232,1735669840360,-500.0,0.00019178,2]
[347302234,1735669840369,-891.82,0.00019178,2]
[347302236,1735669840379,-833.17,0.00019178,2]
[347302238,1735669840388,-843.3,0.00019178,2]
[347302241,1735669840398,-595.84186455,0.00019178,2]
[347302243,1735669840407,-500.0,0.00019178,2]
[347302245,1735669840416,-500.0,0.00019178,2]
[347302247,1735669840426,-500.0,0.00019178,2]
[347302249,1735669840435,-500.0,0.00019178,2]
[347302251,1735669840446,-500.0,0.00019178,2]
[347302253,1735669840455,-500.0,0.00019178,2]
[347302255,1735669840464,-500.0,0.00019178,2]
[347302257,1735669840474,-500.0,0.00019178,2]
[347302259,1735669840483,-1518.08,0.00019178,2]
[347302261,1735669840492,-500.0,0.00019178,2]
[347302263,1735669840502,-500.0,0.00019178,2]
[347302265,1735669840512,-500.0,0.00019178,2]
[347302267,1735669840521,-500.0,0.00019178,2]
[347302269,1735669840530,-500.0,0.00019178,2]
[347302271,1735669840539,-500.0,0.00019178,2]
[347302273,1735669840548,-500.0,0.00019178,2]
[347302275,1735669840558,-500.0,0.00019178,2]
[347302276,1735669840567,-500.0,0.00019178,2]
[347302277,1735669840576,-500.0,0.00019178,2]
[347302278,1735669840585,-1852.78,0.00019178,2]
[347302279,1735669840594,-500.0,0.00019178,2]
[347302280,1735669840603,-455.0,0.00019178,2]
[347302281,1735669840612,-500.0,0.00019178,2]
[347302282,1735669840622,-863.36,0.00019178,2]
[347302283,1735669840631,-500.0,0.00019178,2]
[347302284,1735669840641,-500.0,0.00019178,2]
[347302285,1735669840650,-5139.78,0.00019178,2]
[347302286,1735669840660,-500.0,0.00019178,2]
[347302287,1735669840669,-500.0,0.00019178,2]
[347302288,1735669840679,-500.0,0.00019178,2]
[347302289,1735669840689,-500.0,0.00019178,2]
[347302290,1735669840699,-1896.6,0.00019178,2]
[347302291,1735669840708,-749.04,0.00019178,2]
[347302292,1735669840718,-500.0,0.00019178,2]
[347302293,1735669840727,-776.35,0.00019178,2]
[347302294,1735669840736,-1521.01,0.00019178,2]
[347302295,1735669840747,-563.58,0.00019178,2]
[347302296,1735669840756,-500.0,0.00019178,2]
[347302297,1735669840766,-8890.06,0.00019178,2]
[347302298,1735669840775,-1227.77,0.00019178,2]
[347302299,1735669840785,-600.29,0.00019178,2]
[347302300,1735669840794,-727.38,0.00019178,2]
[347302301,1735669840804,-500.0,0.00019178,2]
[347302302,1735669840813,-500.0,0.00019178,2]
[347302303,1735669840822,-1000.0,0.00019178,2]
[347302304,1735669840831,-500.0,0.00019178,2]
[347302305,1735669840841,-500.0,0.00019178,2]
[347302306,1735669840850,-500.0,0.00019178,2]
[347302307,1735669840859,-500.0,0.00019178,2]
[347302308,1735669840869,-684.02,0.00019178,2]
[347302309,1735669840878,-500.0,0.00019178,2]
[347302310,1735669840887,-500.0,0.00019178,2]
[347302311,1735669840897,-1115.4,0.00019178,2]
[347302312,1735669840906,-500.0,0.00019178,2]
[347302313,1735669840915,-500.0,0.00019178,2]
[347302314,1735669840925,-503.14849776,0.00019178,2]
[347302315,1735669840934,-500.0,0.00019178,2]
[347302316,1735669840943,-1002.07,0.00019178,2]
[347302317,1735669840952,-40424.46,0.00019178,2]
[347302318,1735669840961,-500.0,0.00019178,2]
[347302319,1735669840971,-571.74926765,0.00019178,2]
[347302320,1735669840983,-1021.39,0.00019178,2]
[347302321,1735669840992,-500.0,0.00019178,2]
[347302322,1735669841002,-500.0,0.00019178,2]
[347302323,1735669841012,-500.0,0.00019178,2]
[347302324,1735669841022,-500.0,0.00019178,2]
[347302325,1735669841032,-500.0,0.00019178,2]
[347302326,1735669841042,-909.7,0.00019178,2]
[347302327,1735669841051,-1245.62,0.00019178,2]
[347302328,1735669841062,-500.0,0.00019178,2]
[347302329,1735669841072,-492.28703826,0.00019178,2]
[347302330,1735669841081,-500.0,0.00019178,2]
[347302331,1735669841090,-500.0,0.00019178,2]
[347302332,1735669841099,-3945.13,0.00019178,2]
[347302333,1735669841109,-500.0,0.00019178,2]
[347302334,1735669841118,-3107.38,0.00019178,2]
[347302335,1735669841127,-832.16,0.00019178,2]
[347302336,1735669841137,-500.0,0.00019178,2]
[347302337,1735669841146,-257.79901667,0.00019178,2]
[347302338,1735669841155,-500.0,0.00019178,2]
[347302339,1735669841166,-1192.86,0.00019178,2]
[347302340,1735669841175,-500.0,0.00019178,2]
[347302341,1735669841184,-500.0,0.00019178,2]
[347302342,1735669841193,-500.0,0.00019178,2]
[347302343,1735669841202,-500.0,0.00019178,2]
[347302344,1735669841211,-521.96,0.00019178,2]
[347302345,1735669841220,-500.0,0.00019178,2]
[347302346,1735669841230,-500.0,0.00019178,2]
[347302347,1735669841239,-500.0,0.00019178,2]
[347302348,1735669841377,-768.06,0.00019178,2]
[347302349,1735669841388,-502.11,0.00019178,2]
[347302350,1735669841397,-1993.67,0.00019178,2]
[347302351,1735669841406,-482.91177722,0.00019178,2]
[347302352,1735669841415,-500.0,0.00019178,2]
[347302353,1735669841425,-1512.88,0.00019178,2]
[347302354,1735669841434,-500.0,0.00019178,2]
[347302355,1735669841445,-500.0,0.00019178,2]
[347302356,1735669841454,-1489.93,0.00019178,2]
[347302357,1735669841463,-500.0,0.00019178,2]
[347302358,1735669841472,-1621.23,0.00019178,2]
[347302359,1735669841481,-2082.02,0.00019178,2]
[347302360,1735669841490,-505.95060473,0.00019178,2]
[347302361,1735669841499,-1485.04,0.00019178,2]
[347302362,1735669841508,-500.0,0.00019178,2]
[347302363,1735669841517,-150.0,0.00019178,2]
[347302364,1735669841528,-174.399891,0.00019178,2]
[347302365,1735669841537,-152.0,0.00019234,2]
[347302366,1735669841546,-389.94802501,0.00019257,2]
[347302367,1735669841556,-302.66710251,0.00019295,2]
[347302368,1735669841565,-1056.27951268,0.00019352,2]
[347302369,1735669841574,-389.94802501,0.00019435,2]
[347302370,1735669841583,-204.04746096,0.00019451,2]
[347302371,1735669841593,-500.0,0.00019451,2]
[347302372,1735669841602,-254.60959638,0.00019451,2]
[347302373,1735669841611,-378.22671747,0.00019451,2]
[347302374,1735669841620,-500.0,0.00019452,3]
[347302375,1735669841629,-500.0,0.00019452,3]
[347302376,1735669841638,-500.0,0.00019452,3]
[347302377,1735669841647,-536.86,0.00019452,3]
[347302378,1735669841656,-500.0,0.00019452,3]
[347302379,1735669841665,-500.0,0.00019452,3]
[347302380,1735669841674,-500.0,0.00019452,3]
[347302381,1735669841682,-500.0,0.00019452,3]
[347302382,1735669841691,-500.0,0.00019452,3]
[347302383,1735669841700,-500.0,0.00019452,3]
[347302384,1735669841709,-500.0,0.00019452,3]
[347302385,1735669841718,-500.0,0.00019452,3]
[347302387,1735669841727,-500.0,0.00019452,3]
[347302388,1735669841736,-500.0,0.00019452,3]
[347302389,1735669841745,-500.0,0.00019452,3]
[347302390,1735669841755,-500.0,0.00019452,3]
[347302392,1735669841764,-500.0,0.00019452,3]
[347302394,1735669841773,-500.0,0.00019452,3]
[347302396,1735669841783,-500.0,0.00019452,3]
[347302398,1735669841793,-500.0,0.00019452,3]
[347302400,1735669841802,-500.0,0.00019452,3]
[347302401,1735669841811,-500.0,0.00019452,3]
[347302402,1735669841820,-500.0,0.00019452,3]
[347302404,1735669841829,-545.94,0.00019452,3]
[347302405,1735669841838,-569.88788877,0.00019452,3]
[347302406,1735669841847,-500.0,0.00019452,3]
[347302407,1735669841857,-503.17145217,0.00019452,3]
[347302408,1735669841866,-500.0,0.00019452,3]